[Event "Titled Tuesday Blitz August 1 Early 2023"]
[White "Lohani, Sujana"]
[Black "Akylbek2021"]
[WhiteFideId "12311987"]
[WhiteElo "1962"]
[BlackElo "2313"]
[Result "0-1"]
[Round "10"]
[TimeControl "180+1"]
[Date "2023.08.01"]
[WhiteClock "0:00:00"]
[BlackClock "0:00:07"]
[Board "165"]

1. d4 {[%clk 0:03:00]}  Nf6 {[%clk 0:02:57]} 2. Nf3 {[%clk 0:03:00]}  c5 {[%clk 0:02:56]} 3. c4 {[%clk 0:03:01]}  cxd4 {[%clk 0:02:54]} 4. Nxd4 {[%clk 0:03:01]}  g6 {[%clk 0:02:55]} 5. Nc3 {[%clk 0:02:59]}  Bg7 {[%clk 0:02:56]} 6. g3 {[%clk 0:02:57]}  O-O {[%clk 0:02:56]} 7. Bg2 {[%clk 0:02:57]}  Nc6 {[%clk 0:02:57]} 8. O-O {[%clk 0:02:57]}  Nxd4 {[%clk 0:02:53]} 9. Qxd4 {[%clk 0:02:57]}  d6 {[%clk 0:02:53]} 10. e4 {[%clk 0:02:56]}  Be6 {[%clk 0:02:51]} 11. Qd3 {[%clk 0:02:51]}  Nd7 {[%clk 0:02:52]} 12. b3 {[%clk 0:02:46]}  Nc5 {[%clk 0:02:49]} 13. Qc2 {[%clk 0:02:45]}  a5 {[%clk 0:02:49]} 14. Bb2 {[%clk 0:02:44]}  Rc8 {[%clk 0:02:48]} 15. Nd5 {[%clk 0:02:43]}  Bxd5 {[%clk 0:02:32]} 16. exd5 {[%clk 0:02:29]}  Qb6 {[%clk 0:01:57]} 17. Rfe1 {[%clk 0:02:21]}  Rfe8 {[%clk 0:01:47]} 18. Bxg7 {[%clk 0:02:06]}  Kxg7 {[%clk 0:01:47]} 19. Qb2+ {[%clk 0:02:00]}  f6 {[%clk 0:01:47]} 20. Rad1 {[%clk 0:01:57]}  a4 {[%clk 0:01:45]} 21. b4 {[%clk 0:01:53]}  Nd7 {[%clk 0:01:45]} 22. Re4 {[%clk 0:01:47]}  Ne5 {[%clk 0:01:40]} 23. Bf1 {[%clk 0:01:40]}  f5 {[%clk 0:01:18]} 24. Re3 {[%clk 0:01:27]}  Kg8 {[%clk 0:01:12]} 25. Rc3 {[%clk 0:01:21]}  Ng4 {[%clk 0:01:03]} 26. a3 {[%clk 0:01:14]}  Rc7 {[%clk 0:01:00]} 27. Qe2 {[%clk 0:01:06]}  Rec8 {[%clk 0:00:52]} 28. Qe6+ {[%clk 0:00:56]}  Kf8 {[%clk 0:00:33]} 29. Rd2 {[%clk 0:00:54]}  Nf6 {[%clk 0:00:24]} 30. Rdc2 {[%clk 0:00:30]}  Ne4 {[%clk 0:00:17]} 31. Re3 {[%clk 0:00:29]}  Qd4 {[%clk 0:00:15]} 32. Kg2 {[%clk 0:00:26]}  Qf6 {[%clk 0:00:14]} 33. f3 {[%clk 0:00:20]}  Qxe6 {[%clk 0:00:13]} 34. dxe6 {[%clk 0:00:20]}  Nf6 {[%clk 0:00:09]} 35. Bd3 {[%clk 0:00:16]}  Kg7 {[%clk 0:00:08]} 36. h3 {[%clk 0:00:10]}  b5 {[%clk 0:00:07]} 37. f4 {[%clk 0:00:00]}  bxc4 {[%clk 0:00:07]} 0-1


[Site "https://www.chess.com"]

[Event "Titled Tuesday Blitz August 1 Early 2023"]
[White "Kriti Mayur Patel"]
[Black "Zaichenko, Daria"]
[WhiteFideId "35061780"]
[BlackFideId "4197453"]
[WhiteElo "2048"]
[BlackElo "2246"]
[Result "1-0"]
[Round "10"]
[TimeControl "180+1"]
[Date "2023.08.01"]
[WhiteClock "0:00:15"]
[BlackClock "0:00:00"]
[Board "169"]

1. e4 {[%clk 0:03:00]}  c5 {[%clk 0:02:56]} 2. d4 {[%clk 0:03:00]}  cxd4 {[%clk 0:02:56]} 3. c3 {[%clk 0:03:01]}  Nf6 {[%clk 0:02:54]} 4. e5 {[%clk 0:03:01]}  Nd5 {[%clk 0:02:55]} 5. Nf3 {[%clk 0:02:59]}  d6 {[%clk 0:02:51]} 6. Bc4 {[%clk 0:02:56]}  Nb6 {[%clk 0:02:44]} 7. Bb3 {[%clk 0:02:56]}  dxe5 {[%clk 0:02:40]} 8. Nxe5 {[%clk 0:02:56]}  e6 {[%clk 0:02:40]} 9. Qh5 {[%clk 0:02:46]}  Qf6 {[%clk 0:02:34]} 10. cxd4 {[%clk 0:02:38]}  h6 {[%clk 0:02:30]} 11. O-O {[%clk 0:02:34]}  Bd6 {[%clk 0:02:28]} 12. f4 {[%clk 0:02:22]}  O-O {[%clk 0:02:24]} 13. Nc3 {[%clk 0:02:21]}  Qd8 {[%clk 0:02:09]} 14. Ne4 {[%clk 0:02:16]}  Bxe5 {[%clk 0:02:08]} 15. dxe5 {[%clk 0:02:06]}  Qd4+ {[%clk 0:02:05]} 16. Nf2 {[%clk 0:02:06]}  Bd7 {[%clk 0:01:59]} 17. Qh3 {[%clk 0:02:04]}  Bb5 {[%clk 0:01:57]} 18. Be3 {[%clk 0:02:04]}  Qb4 {[%clk 0:01:53]} 19. Rfd1 {[%clk 0:02:01]}  Nc6 {[%clk 0:01:52]} 20. Ng4 {[%clk 0:01:56]}  Be2 {[%clk 0:01:44]} 21. Nxh6+ {[%clk 0:01:39]}  gxh6 {[%clk 0:01:42]} 22. Re1 {[%clk 0:01:40]}  Bd3 {[%clk 0:01:39]} 23. Qxh6 {[%clk 0:01:39]}  Nd5 {[%clk 0:01:30]} 24. Rad1 {[%clk 0:01:35]}  Qe4 {[%clk 0:01:29]} 25. Qg5+ {[%clk 0:01:15]}  Qg6 {[%clk 0:01:27]} 26. Rxd3 {[%clk 0:01:14]}  Qxg5 {[%clk 0:01:15]} 27. fxg5 {[%clk 0:01:15]}  Nxe5 {[%clk 0:01:15]} 28. Rd4 {[%clk 0:01:01]}  Nc6 {[%clk 0:01:11]} 29. Rh4 {[%clk 0:00:56]}  Nxe3 {[%clk 0:01:11]} 30. Rxe3 {[%clk 0:00:55]}  Kg7 {[%clk 0:01:11]} 31. Reh3 {[%clk 0:00:54]}  Kg6 {[%clk 0:01:03]} 32. Rh5 {[%clk 0:00:35]}  Nd4 {[%clk 0:00:59]} 33. Bc4 {[%clk 0:00:33]}  Kf5 {[%clk 0:00:51]} 34. Bd3+ {[%clk 0:00:32]}  Ke5 {[%clk 0:00:49]} 35. Re3+ {[%clk 0:00:30]}  Kd6 {[%clk 0:00:48]} 36. g6 {[%clk 0:00:28]}  fxg6 {[%clk 0:00:45]} 37. Bxg6 {[%clk 0:00:29]}  Rf6 {[%clk 0:00:45]} 38. Be4 {[%clk 0:00:28]}  Raf8 {[%clk 0:00:42]} 39. h3 {[%clk 0:00:27]}  Rf2 {[%clk 0:00:36]} 40. Rd3 {[%clk 0:00:26]}  e5 {[%clk 0:00:36]} 41. Bxb7 {[%clk 0:00:24]}  Rxb2 {[%clk 0:00:34]} 42. Be4 {[%clk 0:00:20]}  Rf4 {[%clk 0:00:14]} 43. Rh6+ {[%clk 0:00:20]}  Kc5 {[%clk 0:00:14]} 44. Ba8 {[%clk 0:00:19]}  Ne2+ {[%clk 0:00:12]} 45. Kh2 {[%clk 0:00:17]}  Rf1 {[%clk 0:00:10]} 46. Re3 {[%clk 0:00:16]}  Nf4 {[%clk 0:00:08]} 47. Rc6+ {[%clk 0:00:17]}  Kd4 {[%clk 0:00:07]} 48. Rcc3 {[%clk 0:00:17]}  Rxa2 {[%clk 0:00:05]} 49. Rg3 {[%clk 0:00:17]}  Raa1 {[%clk 0:00:00]} 50. Rge3 {[%clk 0:00:15]} 1-0


[Site "https://www.chess.com"]

[Event "Titled Tuesday Blitz August 1 Early 2023"]
[White "Wisniowski, Natalie"]
[Black "Hrescak, Ivana"]
[WhiteFideId "30929261"]
[BlackFideId "14613441"]
[WhiteElo "2030"]
[BlackElo "2202"]
[Result "0-1"]
[Round "10"]
[TimeControl "180+1"]
[Date "2023.08.01"]
[WhiteClock "0:00:00"]
[BlackClock "0:00:06"]
[Board "170"]

1. e4 {[%clk 0:02:58]}  e5 {[%clk 0:03:00]} 2. Nf3 {[%clk 0:02:57]}  Nc6 {[%clk 0:03:00]} 3. d4 {[%clk 0:02:56]}  exd4 {[%clk 0:03:00]} 4. Bc4 {[%clk 0:02:56]}  Nf6 {[%clk 0:03:00]} 5. e5 {[%clk 0:02:55]}  Ne4 {[%clk 0:02:58]} 6. O-O {[%clk 0:02:53]}  Be7 {[%clk 0:02:51]} 7. Re1 {[%clk 0:02:47]}  Nc5 {[%clk 0:02:49]} 8. Nxd4 {[%clk 0:02:40]}  O-O {[%clk 0:02:43]} 9. Nf5 {[%clk 0:02:31]}  d5 {[%clk 0:02:30]} 10. Nxe7+ {[%clk 0:02:27]}  Nxe7 {[%clk 0:02:29]} 11. Bd3 {[%clk 0:02:23]}  Nxd3 {[%clk 0:02:26]} 12. Qxd3 {[%clk 0:02:22]}  Bf5 {[%clk 0:02:27]} 13. Qe2 {[%clk 0:02:14]}  Re8 {[%clk 0:02:14]} 14. Bg5 {[%clk 0:02:12]}  h6 {[%clk 0:02:14]} 15. Bh4 {[%clk 0:02:11]}  c6 {[%clk 0:02:12]} 16. Nd2 {[%clk 0:02:01]}  Qb6 {[%clk 0:02:10]} 17. Nb3 {[%clk 0:01:56]}  c5 {[%clk 0:01:54]} 18. Qd2 {[%clk 0:01:25]}  Ng6 {[%clk 0:01:34]} 19. Bg3 {[%clk 0:01:22]}  Rad8 {[%clk 0:01:34]} 20. c3 {[%clk 0:01:16]}  a5 {[%clk 0:01:30]} 21. Qe3 {[%clk 0:01:12]}  Rc8 {[%clk 0:01:20]} 22. Qf3 {[%clk 0:00:59]}  Be4 {[%clk 0:01:13]} 23. Qe2 {[%clk 0:00:54]}  a4 {[%clk 0:00:29]} 24. Nd2 {[%clk 0:00:54]}  Bf5 {[%clk 0:00:23]} 25. Nf3 {[%clk 0:00:51]}  Rcd8 {[%clk 0:00:17]} 26. Rad1 {[%clk 0:00:49]}  Be6 {[%clk 0:00:12]} 27. h3 {[%clk 0:00:47]}  Ne7 {[%clk 0:00:12]} 28. Rd2 {[%clk 0:00:40]}  Nf5 {[%clk 0:00:12]} 29. Bh2 {[%clk 0:00:38]}  Rd7 {[%clk 0:00:12]} 30. Red1 {[%clk 0:00:38]}  Red8 {[%clk 0:00:13]} 31. Qd3 {[%clk 0:00:26]}  d4 {[%clk 0:00:12]} 32. cxd4 {[%clk 0:00:25]}  Nxd4 {[%clk 0:00:13]} 33. Nxd4 {[%clk 0:00:24]}  Rxd4 {[%clk 0:00:13]} 34. Qc2 {[%clk 0:00:23]}  Qb4 {[%clk 0:00:10]} 35. Rxd4 {[%clk 0:00:21]}  Rxd4 {[%clk 0:00:10]} 36. Rxd4 {[%clk 0:00:13]}  Qxd4 {[%clk 0:00:10]} 37. Bg3 {[%clk 0:00:13]}  g6 {[%clk 0:00:09]} 38. a3 {[%clk 0:00:11]}  Bb3 {[%clk 0:00:09]} 39. Qe2 {[%clk 0:00:10]}  Kg7 {[%clk 0:00:08]} 40. Kh2 {[%clk 0:00:09]}  Be6 {[%clk 0:00:07]} 41. Qc2 {[%clk 0:00:08]}  Qd7 {[%clk 0:00:04]} 42. Qc3 {[%clk 0:00:08]}  Qb5 {[%clk 0:00:04]} 43. Qc2 {[%clk 0:00:07]}  Bb3 {[%clk 0:00:03]} 44. Qd2 {[%clk 0:00:07]}  Be6 {[%clk 0:00:03]} 45. Qc3 {[%clk 0:00:07]}  b6 {[%clk 0:00:02]} 46. Qc2 {[%clk 0:00:07]}  Qc6 {[%clk 0:00:03]} 47. Qc3 {[%clk 0:00:06]}  b5 {[%clk 0:00:03]} 48. Qc2 {[%clk 0:00:07]}  Qd5 {[%clk 0:00:03]} 49. Qe2 {[%clk 0:00:06]}  b4 {[%clk 0:00:03]} 50. axb4 {[%clk 0:00:06]}  cxb4 {[%clk 0:00:04]} 51. Qc2 {[%clk 0:00:06]}  a3 {[%clk 0:00:04]} 52. bxa3 {[%clk 0:00:03]}  bxa3 {[%clk 0:00:05]} 53. Qc1 {[%clk 0:00:04]}  a2 {[%clk 0:00:05]} 54. Qa1 {[%clk 0:00:03]}  Qb3 {[%clk 0:00:06]} 55. Qe1 {[%clk 0:00:00]}  Qb1 {[%clk 0:00:06]} 0-1


[Site "https://www.chess.com"]

[Event "Titled Tuesday Blitz August 1 Early 2023"]
[White "Vargas, Mauricio"]
[Black "le-castor-faineant"]
[WhiteFideId "4404572"]
[WhiteElo "1900"]
[BlackElo "2185"]
[Result "0-1"]
[Round "10"]
[TimeControl "180+1"]
[Date "2023.08.01"]
[WhiteClock "0:00:00"]
[BlackClock "0:00:37"]
[Board "171"]

1. e4 {[%clk 0:02:59]}  e5 {[%clk 0:02:59]} 2. Nf3 {[%clk 0:02:59]}  Nf6 {[%clk 0:03:00]} 3. Nc3 {[%clk 0:02:58]}  Nc6 {[%clk 0:02:59]} 4. Bc4 {[%clk 0:02:55]}  Bc5 {[%clk 0:02:58]} 5. d3 {[%clk 0:02:51]}  d6 {[%clk 0:02:57]} 6. O-O {[%clk 0:02:50]}  Bg4 {[%clk 0:02:55]} 7. h3 {[%clk 0:02:49]}  Bh5 {[%clk 0:02:54]} 8. g4 {[%clk 0:02:49]}  Nxg4 {[%clk 0:02:54]} 9. hxg4 {[%clk 0:02:48]}  Bxg4 {[%clk 0:02:55]} 10. Kg2 {[%clk 0:02:47]}  Nd4 {[%clk 0:02:54]} 11. Bxf7+ {[%clk 0:02:11]}  Kf8 {[%clk 0:02:18]} 12. Nxd4 {[%clk 0:01:52]}  Bxd1 {[%clk 0:02:15]} 13. Ne6+ {[%clk 0:01:51]}  Kxf7 {[%clk 0:01:52]} 14. Nxd8+ {[%clk 0:01:51]}  Raxd8 {[%clk 0:01:51]} 15. Rxd1 {[%clk 0:01:51]}  Rdf8 {[%clk 0:01:44]} 16. Na4 {[%clk 0:01:35]}  Bb6 {[%clk 0:01:36]} 17. Nxb6 {[%clk 0:01:34]}  axb6 {[%clk 0:01:37]} 18. Rf1 {[%clk 0:01:29]}  Ke6 {[%clk 0:01:37]} 19. f4 {[%clk 0:01:26]}  exf4 {[%clk 0:01:38]} 20. Rxf4 {[%clk 0:01:22]}  h6 {[%clk 0:01:34]} 21. Rg4 {[%clk 0:01:19]}  g5 {[%clk 0:01:33]} 22. Be3 {[%clk 0:01:18]}  d5 {[%clk 0:01:24]} 23. exd5+ {[%clk 0:01:17]}  Kxd5 {[%clk 0:01:25]} 24. Rf1 {[%clk 0:01:12]}  Rxf1 {[%clk 0:01:23]} 25. Kxf1 {[%clk 0:01:12]}  c5 {[%clk 0:01:18]} 26. Kg2 {[%clk 0:00:51]}  b5 {[%clk 0:01:17]} 27. c4+ {[%clk 0:00:44]}  bxc4 {[%clk 0:01:17]} 28. dxc4+ {[%clk 0:00:43]}  Kc6 {[%clk 0:01:17]} 29. Re4 {[%clk 0:00:40]}  Ra8 {[%clk 0:01:00]} 30. a3 {[%clk 0:00:34]}  Ra4 {[%clk 0:00:56]} 31. Re6+ {[%clk 0:00:26]}  Kd7 {[%clk 0:00:54]} 32. Rxh6 {[%clk 0:00:24]}  Rxc4 {[%clk 0:00:54]} 33. Bxg5 {[%clk 0:00:20]}  Rc2+ {[%clk 0:00:54]} 34. Kg3 {[%clk 0:00:17]}  Rxb2 {[%clk 0:00:55]} 35. Rh7+ {[%clk 0:00:14]}  Kc6 {[%clk 0:00:55]} 36. Rh6+ {[%clk 0:00:14]}  Kd5 {[%clk 0:00:54]} 37. Rh5 {[%clk 0:00:06]}  Kc4 {[%clk 0:00:50]} 38. Rh4+ {[%clk 0:00:05]}  Kb3 {[%clk 0:00:45]} 39. Bf6 {[%clk 0:00:05]}  Ra2 {[%clk 0:00:45]} 40. a4 {[%clk 0:00:04]}  Rxa4 {[%clk 0:00:44]} 41. Rh3 {[%clk 0:00:03]}  c4 {[%clk 0:00:42]} 42. Kf4+ {[%clk 0:00:02]}  c3+ {[%clk 0:00:38]} 43. Ke5 {[%clk 0:00:02]}  Rc4 {[%clk 0:00:39]} 44. Kd5 {[%clk 0:00:00]}  Rc8 {[%clk 0:00:37]} 0-1


[Site "https://www.chess.com"]

[Event "Titled Tuesday Blitz August 1 Early 2023"]
[White "Goughfather"]
[Black "Navyblue1"]
[WhiteElo "2087"]
[BlackElo "1925"]
[Result "1-0"]
[Round "10"]
[TimeControl "180+1"]
[Date "2023.08.01"]
[WhiteClock "0:01:49"]
[BlackClock "0:01:26"]
[Board "174"]

1. d4 {[%clk 0:03:00]}  Nf6 {[%clk 0:02:59]} 2. Nc3 {[%clk 0:03:00]}  d5 {[%clk 0:02:57]} 3. Bf4 {[%clk 0:03:00]}  c6 {[%clk 0:02:55]} 4. e3 {[%clk 0:02:59]}  b5 {[%clk 0:02:55]} 5. Bd3 {[%clk 0:02:52]}  Nbd7 {[%clk 0:02:48]} 6. Nf3 {[%clk 0:02:51]}  g6 {[%clk 0:02:47]} 7. h4 {[%clk 0:02:43]}  Bg7 {[%clk 0:02:45]} 8. Ne5 {[%clk 0:02:36]}  Nxe5 {[%clk 0:02:38]} 9. Bxe5 {[%clk 0:02:34]}  O-O {[%clk 0:02:02]} 10. h5 {[%clk 0:02:33]}  Nxh5 {[%clk 0:01:52]} 11. Rxh5 {[%clk 0:02:01]}  gxh5 {[%clk 0:01:50]} 12. Bxh7+ {[%clk 0:01:59]}  Kxh7 {[%clk 0:01:45]} 13. Qxh5+ {[%clk 0:01:54]}  Kg8 {[%clk 0:01:45]} 14. Bxg7 {[%clk 0:01:53]}  Kxg7 {[%clk 0:01:44]} 15. Qg5+ {[%clk 0:01:53]}  Kh7 {[%clk 0:01:43]} 16. O-O-O {[%clk 0:01:50]}  f6 {[%clk 0:01:26]} 17. Rh1+ {[%clk 0:01:49]} 1-0


[Site "https://www.chess.com"]

[Event "Titled Tuesday Blitz August 1 Early 2023"]
[White "Carlsen, Magnus"]
[Black "Xu, Xiangyu"]
[WhiteFideId "1503014"]
[BlackFideId "8608288"]
[WhiteElo "3252"]
[BlackElo "3016"]
[Result "1-0"]
[Round "11"]
[TimeControl "180+1"]
[Date "2023.08.01"]
[WhiteClock "0:01:37"]
[BlackClock "0:00:11"]
[Board "1"]

1. e4 {[%clk 0:03:00]}  c5 {[%clk 0:02:59]} 2. Nf3 {[%clk 0:03:00]}  d6 {[%clk 0:02:59]} 3. Bb5+ {[%clk 0:02:59]}  Nd7 {[%clk 0:02:55]} 4. a4 {[%clk 0:03:00]}  Nf6 {[%clk 0:02:53]} 5. Nc3 {[%clk 0:03:00]}  g6 {[%clk 0:02:52]} 6. a5 {[%clk 0:02:59]}  Bg7 {[%clk 0:02:52]} 7. a6 {[%clk 0:02:59]}  bxa6 {[%clk 0:02:51]} 8. Bxa6 {[%clk 0:02:58]}  Bxa6 {[%clk 0:02:51]} 9. Rxa6 {[%clk 0:02:58]}  O-O {[%clk 0:02:49]} 10. O-O {[%clk 0:02:57]}  Ne8 {[%clk 0:02:49]} 11. b3 {[%clk 0:02:54]}  Nc7 {[%clk 0:02:49]} 12. Ra2 {[%clk 0:02:54]}  Bxc3 {[%clk 0:02:45]} 13. dxc3 {[%clk 0:02:54]}  a5 {[%clk 0:02:46]} 14. c4 {[%clk 0:02:52]}  a4 {[%clk 0:02:43]} 15. bxa4 {[%clk 0:02:47]}  Nb6 {[%clk 0:02:38]} 16. a5 {[%clk 0:02:40]}  Nxc4 {[%clk 0:02:33]} 17. Bh6 {[%clk 0:02:24]}  Re8 {[%clk 0:02:33]} 18. Qa1 {[%clk 0:02:24]}  f6 {[%clk 0:02:30]} 19. Qc3 {[%clk 0:02:25]}  d5 {[%clk 0:02:16]} 20. h3 {[%clk 0:02:24]}  Nb5 {[%clk 0:02:00]} 21. Qd3 {[%clk 0:02:15]}  e6 {[%clk 0:01:40]} 22. Rb1 {[%clk 0:02:13]}  Nbd6 {[%clk 0:01:15]} 23. exd5 {[%clk 0:02:11]}  e5 {[%clk 0:01:15]} 24. Nd2 {[%clk 0:02:07]}  Rxa5 {[%clk 0:01:10]} 25. Rxa5 {[%clk 0:02:07]}  Nxa5 {[%clk 0:01:11]} 26. Qa6 {[%clk 0:02:06]}  Qc7 {[%clk 0:01:05]} 27. Rb6 {[%clk 0:01:51]}  Nab7 {[%clk 0:01:03]} 28. Ne4 {[%clk 0:01:37]}  Rd8 {[%clk 0:00:11]} 29. Nxf6+ {[%clk 0:01:37]} 1-0


[Site "https://www.chess.com"]

[Event "Titled Tuesday Blitz August 1 Early 2023"]
[White "Megaranto, Susanto"]
[Black "Andreikin, Dmitry"]
[WhiteFideId "7101384"]
[BlackFideId "4158814"]
[WhiteElo "2996"]
[BlackElo "3059"]
[Result "1-0"]
[Round "11"]
[TimeControl "180+1"]
[Date "2023.08.01"]
[WhiteClock "0:00:18"]
[BlackClock "0:00:07"]
[Board "2"]

1. e4 {[%clk 0:03:00]}  c5 {[%clk 0:02:55]} 2. c3 {[%clk 0:02:59]}  d5 {[%clk 0:02:53]} 3. exd5 {[%clk 0:02:59]}  Qxd5 {[%clk 0:02:54]} 4. d4 {[%clk 0:03:00]}  Nf6 {[%clk 0:02:54]} 5. Nf3 {[%clk 0:03:00]}  g6 {[%clk 0:02:54]} 6. Be2 {[%clk 0:02:55]}  Bg7 {[%clk 0:02:54]} 7. O-O {[%clk 0:02:56]}  O-O {[%clk 0:02:54]} 8. Be3 {[%clk 0:02:56]}  cxd4 {[%clk 0:02:53]} 9. Nxd4 {[%clk 0:02:51]}  Qd8 {[%clk 0:02:46]} 10. Bf3 {[%clk 0:02:41]}  Nd5 {[%clk 0:02:33]} 11. Bg5 {[%clk 0:02:41]}  h6 {[%clk 0:02:29]} 12. Bh4 {[%clk 0:02:35]}  Nf4 {[%clk 0:02:25]} 13. Bg3 {[%clk 0:02:29]}  e5 {[%clk 0:02:21]} 14. Bxf4 {[%clk 0:02:29]}  exf4 {[%clk 0:02:22]} 15. Na3 {[%clk 0:02:26]}  Nd7 {[%clk 0:02:18]} 16. Re1 {[%clk 0:02:15]}  Ne5 {[%clk 0:02:15]} 17. h3 {[%clk 0:02:01]}  Rb8 {[%clk 0:02:10]} 18. Qb3 {[%clk 0:01:55]}  Bd7 {[%clk 0:02:00]} 19. Nc4 {[%clk 0:01:46]}  Nxf3+ {[%clk 0:01:58]} 20. Nxf3 {[%clk 0:01:45]}  b5 {[%clk 0:01:52]} 21. Nce5 {[%clk 0:01:39]}  Be6 {[%clk 0:01:50]} 22. Qa3 {[%clk 0:01:35]}  Qb6 {[%clk 0:01:45]} 23. Nd4 {[%clk 0:01:21]}  b4 {[%clk 0:00:51]} 24. Qxb4 {[%clk 0:01:18]}  Qa6 {[%clk 0:00:44]} 25. Qa3 {[%clk 0:01:00]}  Qxa3 {[%clk 0:00:43]} 26. bxa3 {[%clk 0:01:01]}  Rfe8 {[%clk 0:00:32]} 27. Nec6 {[%clk 0:00:54]}  Rbc8 {[%clk 0:00:28]} 28. Nxa7 {[%clk 0:00:42]}  Rxc3 {[%clk 0:00:26]} 29. Nxe6 {[%clk 0:00:42]}  fxe6 {[%clk 0:00:24]} 30. Nb5 {[%clk 0:00:35]}  Rc2 {[%clk 0:00:24]} 31. Rac1 {[%clk 0:00:30]}  Rxa2 {[%clk 0:00:23]} 32. Nc7 {[%clk 0:00:29]}  Re7 {[%clk 0:00:18]} 33. Nxe6 {[%clk 0:00:29]}  Bf6 {[%clk 0:00:10]} 34. Nxf4 {[%clk 0:00:27]}  Rxe1+ {[%clk 0:00:08]} 35. Rxe1 {[%clk 0:00:28]}  g5 {[%clk 0:00:08]} 36. Nd5 {[%clk 0:00:18]}  Bd4 {[%clk 0:00:08]} 37. Ne3 {[%clk 0:00:18]}  Rxa3 {[%clk 0:00:07]} 38. Nc2 {[%clk 0:00:15]}  Rd3 {[%clk 0:00:08]} 39. Re2 {[%clk 0:00:14]}  Bc5 {[%clk 0:00:07]} 40. Kh2 {[%clk 0:00:12]}  Kf7 {[%clk 0:00:07]} 41. g3 {[%clk 0:00:12]}  Rc3 {[%clk 0:00:06]} 42. Kg2 {[%clk 0:00:12]}  Kf6 {[%clk 0:00:06]} 43. Ne1 {[%clk 0:00:13]}  Bd6 {[%clk 0:00:06]} 44. Nf3 {[%clk 0:00:13]}  Bc5 {[%clk 0:00:06]} 45. Nd2 {[%clk 0:00:14]}  Rc1 {[%clk 0:00:04]} 46. Ne4+ {[%clk 0:00:13]}  Kg6 {[%clk 0:00:05]} 47. g4 {[%clk 0:00:13]}  Bd4 {[%clk 0:00:04]} 48. Ng3 {[%clk 0:00:13]}  Rb1 {[%clk 0:00:04]} 49. Re6+ {[%clk 0:00:13]}  Kh7 {[%clk 0:00:04]} 50. Nf5 {[%clk 0:00:12]}  Bc5 {[%clk 0:00:03]} 51. Rxh6+ {[%clk 0:00:12]}  Kg8 {[%clk 0:00:03]} 52. Rg6+ {[%clk 0:00:12]}  Kh8 {[%clk 0:00:04]} 53. Rc6 {[%clk 0:00:11]}  Rc1 {[%clk 0:00:02]} 54. Ng3 {[%clk 0:00:10]}  Be3 {[%clk 0:00:01]} 55. Rxc1 {[%clk 0:00:09]}  Bxc1 {[%clk 0:00:02]} 56. Kf3 {[%clk 0:00:10]}  Kg7 {[%clk 0:00:02]} 57. Ke4 {[%clk 0:00:10]}  Kg6 {[%clk 0:00:03]} 58. Ne2 {[%clk 0:00:11]}  Bd2 {[%clk 0:00:03]} 59. Nd4 {[%clk 0:00:11]}  Be1 {[%clk 0:00:03]} 60. f3 {[%clk 0:00:11]}  Kf6 {[%clk 0:00:03]} 61. Nc6 {[%clk 0:00:11]}  Bc3 {[%clk 0:00:03]} 62. Na7 {[%clk 0:00:10]}  Bb2 {[%clk 0:00:03]} 63. Nb5 {[%clk 0:00:10]}  Ba1 {[%clk 0:00:03]} 64. Na3 {[%clk 0:00:10]}  Bb2 {[%clk 0:00:04]} 65. Nc4 {[%clk 0:00:11]}  Ba1 {[%clk 0:00:04]} 66. Ne3 {[%clk 0:00:11]}  Bb2 {[%clk 0:00:04]} 67. Ng2 {[%clk 0:00:10]}  Ba1 {[%clk 0:00:04]} 68. h4 {[%clk 0:00:10]}  gxh4 {[%clk 0:00:04]} 69. Nxh4 {[%clk 0:00:11]}  Kg5 {[%clk 0:00:05]} 70. Ng2 {[%clk 0:00:11]}  Bb2 {[%clk 0:00:05]} 71. Ne3 {[%clk 0:00:12]}  Ba1 {[%clk 0:00:05]} 72. f4+ {[%clk 0:00:12]}  Kh4 {[%clk 0:00:05]} 73. Kf3 {[%clk 0:00:12]}  Bb2 {[%clk 0:00:05]} 74. Nf5+ {[%clk 0:00:13]}  Kh3 {[%clk 0:00:06]} 75. g5 {[%clk 0:00:13]}  Ba1 {[%clk 0:00:06]} 76. g6 {[%clk 0:00:14]}  Bb2 {[%clk 0:00:07]} 77. g7 {[%clk 0:00:14]}  Bxg7 {[%clk 0:00:07]} 78. Nxg7 {[%clk 0:00:15]}  Kh4 {[%clk 0:00:07]} 79. Nf5+ {[%clk 0:00:14]}  Kh5 {[%clk 0:00:08]} 80. Kg3 {[%clk 0:00:15]}  Kg6 {[%clk 0:00:08]} 81. Kg4 {[%clk 0:00:15]}  Kf6 {[%clk 0:00:09]} 82. Ng3 {[%clk 0:00:16]}  Kg6 {[%clk 0:00:09]} 83. Ne4 {[%clk 0:00:17]}  Kf7 {[%clk 0:00:09]} 84. f5 {[%clk 0:00:17]}  Ke7 {[%clk 0:00:09]} 85. Kg5 {[%clk 0:00:18]}  Kf7 {[%clk 0:00:09]} 86. f6 {[%clk 0:00:18]}  Ke6 {[%clk 0:00:10]} 87. Kg6 {[%clk 0:00:18]}  Ke5 {[%clk 0:00:10]} 88. Ng5 {[%clk 0:00:19]}  Kd6 {[%clk 0:00:10]} 89. f7 {[%clk 0:00:19]}  Kd5 {[%clk 0:00:07]} 90. f8=Q {[%clk 0:00:18]} 1-0


[Site "https://www.chess.com"]